bitfinex/quotes_BTCUSD_20241009
["timestamp","ask_amount","ask_price","bid_price","bid_amount"]
[1728466000819,0.95388761,62229.0,62218.0,0.2397794]
[1728466000820,0.160722,62219.0,62218.0,0.2397794]
[1728466001047,0.26826779,62219.0,62218.0,0.2397794]
[1728466001278,0.26826779,62219.0,62212.0,0.1048]
[1728466001531,0.160738,62213.0,62212.0,0.1048]
[1728466002433,0.160738,62213.0,62212.0,0.1098]
[1728466002891,0.160738,62213.0,62212.0,0.1048]
[1728466003816,0.2742502,62213.0,62212.0,0.1128]
[1728466004879,0.2752502,62213.0,62212.0,0.1228]
[1728466006991,0.2752502,62213.0,62212.0,0.018]
[1728466007974,0.29033146,62213.0,62212.0,0.018]
[1728466008229,0.17681926,62213.0,62212.0,0.01]
[1728466008449,0.17581926,62213.0,62212.0,0.003]
[1728466008907,0.17581926,62213.0,62212.0,0.005]
[1728466009649,0.28983849,62213.0,62212.0,0.002]
[1728466009890,0.28983849,62213.0,62212.0,0.004]
[1728466010115,0.17581926,62213.0,62212.0,0.004]
[1728466014975,0.17581926,62213.0,62212.0,0.005642]
[1728466015214,0.17581926,62213.0,62212.0,0.004642]
[1728466016823,0.17955672,62213.0,62212.0,0.004642]
[1728466017525,0.63592594,62213.0,62212.0,0.004642]
[1728466017752,0.78760192,62213.0,62212.0,0.004642]
[1728466018005,1.03233664,62213.0,62212.0,0.004642]
[1728466018247,0.38180378,62209.0,62208.0,0.00164]
[1728466018485,0.78299079,62209.0,62208.0,0.00164]
[1728466018715,0.93840423,62209.0,62208.0,0.00164]
[1728466019954,0.94540423,62209.0,62208.0,0.00264]
[1728466020183,0.93732297,62209.0,62208.0,0.00364]
[1728466020648,0.93932297,62209.0,62208.0,0.00364]
[1728466020870,0.93732297,62209.0,62208.0,0.00364]
[1728466021104,0.93932297,62209.0,62208.0,0.00364]
[1728466021350,0.95438115,62209.0,62208.0,0.00364]
[1728466021572,0.95238115,62209.0,62208.0,0.00364]
[1728466022529,1.07479624,62209.0,62208.0,0.00364]
[1728466023494,0.95238115,62209.0,62208.0,0.00364]
[1728466024646,1.04866514,62209.0,62208.0,0.00364]
[1728466025586,0.95438115,62209.0,62208.0,0.00364]
[1728466026450,1.02656659,62209.0,62208.0,0.00364]
[1728466026885,1.02454299,62209.0,62208.0,0.00364]
[1728466027125,1.04974318,62209.0,62208.0,0.00364]
[1728466028087,1.05174318,62209.0,62208.0,0.00364]
[1728466029090,1.04974318,62209.0,62208.0,0.00364]
[1728466029287,0.97755774,62209.0,62208.0,0.00364]
[1728466029493,0.97955774,62209.0,62208.0,0.00364]
[1728466029842,1.07580499,62209.0,62208.0,0.00364]
[1728466030499,1.05877041,62209.0,62208.0,0.00364]
[1728466030715,0.96252316,62209.0,62208.0,0.00364]
[1728466031397,0.97755371,62209.0,62208.0,0.00364]
[1728466032327,0.97755199,62209.0,62208.0,0.00364]
[1728466032553,1.04968103,62209.0,62208.0,0.00364]
[1728466033020,1.05168103,62209.0,62208.0,0.00364]
[1728466034648,1.04968103,62209.0,62208.0,0.00364]
[1728466036651,1.05168103,62209.0,62208.0,0.00364]
[1728466037107,1.05164473,62209.0,62208.0,0.00364]
[1728466037567,0.96452316,62209.0,62208.0,0.00364]
[1728466037824,0.97755253,62209.0,62208.0,0.00364]
[1728466038510,0.91396528,62209.0,62208.0,0.00364]
[1728466039226,0.91396407,62209.0,62208.0,0.00364]
[1728466039681,0.83746407,62209.0,62208.0,0.00364]
[1728466040677,0.67385904,62209.0,62208.0,0.00364]
[1728466040933,0.62580323,62209.0,62208.0,0.00364]
[1728466041393,0.47038979,62209.0,62208.0,0.00364]
[1728466047261,0.51845448,62209.0,62208.0,0.00364]
[1728466047686,0.55778887,62209.0,62196.0,0.2397794]
[1728466047896,0.160779,62197.0,62196.0,0.2397794]
[1728466048153,0.17954462,62197.0,62196.0,0.2397794]
[1728466048373,0.160784,62195.0,62194.0,0.0768]
[1728466048564,0.29397118,62195.0,62194.0,0.0768]
[1728466049512,0.29497118,62195.0,62194.0,0.0848]
[1728466049720,0.29597118,62195.0,62194.0,0.0898]
[1728466055118,0.29591495,62195.0,62194.0,0.013]
[1728466055334,0.28088679,62195.0,62194.0,0.013]
[1728466055585,0.29597501,62195.0,62194.0,0.013]
[1728466056299,0.18155345,62195.0,62194.0,0.013]
[1728466062848,0.18155006,62195.0,62194.0,0.013]
[1728466063283,0.11524457,62195.0,62194.0,0.001642]
[1728466063549,0.27602857,62195.0,62194.0,0.001642]
[1728466063778,0.27602857,62195.0,62194.0,0.002642]
[1728466064523,0.3921321,62195.0,62194.0,0.002642]
[1728466064783,0.38839464,62195.0,62194.0,0.002642]
[1728466066578,0.162784,62195.0,62194.0,0.001642]
[1728466066817,0.18260154,62195.0,62194.0,0.001642]
[1728466067047,0.230862,62195.0,62194.0,0.001642]
[1728466070205,0.21578192,62195.0,62194.0,0.001642]
[1728466070436,0.23086382,62195.0,62194.0,0.001642]
[1728466072078,0.23087135,62195.0,62194.0,0.001642]
[1728466073017,0.24855488,62195.0,62194.0,0.001642]
[1728466075923,0.24937588,62195.0,62194.0,0.001642]
[1728466077069,0.25762105,62195.0,62194.0,0.001642]
[1728466079288,0.23993752,62195.0,62194.0,0.001642]
[1728466081393,0.23994088,62195.0,62194.0,0.001642]
[1728466084409,0.22485898,62195.0,62194.0,0.001642]
[1728466084633,0.23994766,62195.0,62194.0,0.001642]
[1728466085340,0.19167631,62195.0,62194.0,0.001642]
[1728466085586,0.23994737,62195.0,62194.0,0.001642]
[1728466086514,0.26408334,62195.0,62194.0,0.001642]
[1728466086740,0.19167631,62195.0,62194.0,0.001642]
[1728466086957,0.23994952,62195.0,62194.0,0.001642]
[1728466087391,0.19167631,62195.0,62194.0,0.001642]
[1728466088340,0.17658763,62195.0,62194.0,0.001642]
[1728466088563,0.1916775,62195.0,62194.0,0.001642]
[1728466092308,0.19167806,62195.0,62194.0,0.001642]
[1728466092558,0.26408509,62195.0,62194.0,0.001642]
[1728466093690,0.32980372,62195.0,62194.0,0.001642]
[1728466093932,0.32606626,62195.0,62194.0,0.001642]
[1728466095093,0.35023814,62195.0,62194.0,0.001642]
[1728466095343,0.25365923,62195.0,62194.0,0.001642]
[1728466095535,0.37807507,62195.0,62194.0,0.001642]
[1728466095782,0.37433761,62195.0,62194.0,0.001642]
[1728466096420,0.25365923,62195.0,62194.0,0.001642]
[1728466096625,0.25739669,62195.0,62194.0,0.001642]
[1728466098622,0.35396915,62195.0,62194.0,0.001642]
[1728466098834,0.25365923,62195.0,62194.0,0.001642]
[1728466099053,0.25739669,62195.0,62194.0,0.001642]
[1728466099310,0.24230626,62195.0,62194.0,0.001642]
[1728466099531,0.25739663,62195.0,62194.0,0.001642]
[1728466099987,0.19167809,62195.0,62194.0,0.001642]
[1728466107553,0.19167827,62195.0,62194.0,0.001642]
[1728466109639,0.28825549,62195.0,62194.0,0.001642]
[1728466111084,0.28587827,62195.0,62194.0,0.001642]
[1728466111308,0.27078763,62195.0,62194.0,0.001642]
[1728466111545,0.39959572,62195.0,62194.0,0.001642]
[1728466111760,0.39585826,62195.0,62194.0,0.001642]
[1728466112147,0.51658751,62195.0,62194.0,0.001642]
[1728466112547,0.67200095,62195.0,62194.0,0.001642]
[1728466114824,0.5512717,62195.0,62194.0,0.001642]
[1728466119148,0.34335494,62195.0,62194.0,0.001642]
[1728466119379,0.30863237,62195.0,62194.0,0.001642]
[1728466119636,0.19167896,62195.0,62194.0,0.001642]
[1728466121297,0.2882286,62195.0,62194.0,0.001642]
[1728466121538,0.19167896,62195.0,62194.0,0.001642]
[1728466122019,0.1879415,62195.0,62194.0,0.001642]
[1728466122321,0.26035263,62195.0,62194.0,0.001642]
[1728466122562,0.23621538,62195.0,62194.0,0.096442]
[1728466122812,0.1879415,62195.0,62194.0,0.096442]
[1728466123489,0.1859415,62195.0,62194.0,0.096442]
[1728466123719,0.1849415,62195.0,62194.0,0.098442]
[1728466123947,0.1849415,62195.0,62194.0,0.102442]
[1728466124168,0.1849415,62195.0,62194.0,0.098442]
[1728466124677,0.1859415,62195.0,62194.0,0.105442]
[1728466125155,0.1859415,62195.0,62194.0,0.103442]
[1728466125379,0.17185017,62195.0,62194.0,0.106442]
[1728466125618,0.18693102,62195.0,62194.0,0.106442]
[1728466131900,0.18693102,62195.0,62194.0,0.106442]
[1728466132113,0.18692132,62195.0,62194.0,0.106442]
[1728466138780,0.17185017,62195.0,62194.0,0.106442]
[1728466139035,0.18691685,62195.0,62194.0,0.106442]
[1728466141162,0.17185017,62195.0,62194.0,0.011642]
[1728466141456,0.18691642,62195.0,62194.0,0.011642]
[1728466147901,0.17185017,62195.0,62194.0,0.011642]
[1728466148141,0.18692502,62195.0,62194.0,0.011642]
[1728466151196,0.18693491,62195.0,62194.0,0.011642]
[1728466154718,0.18694505,62195.0,62194.0,0.011642]
[1728466158097,0.17185017,62195.0,62194.0,0.011642]
[1728466158332,0.18694521,62195.0,62194.0,0.011642]
[1728466161342,0.17185017,62195.0,62194.0,0.011642]
[1728466161575,0.18694529,62195.0,62194.0,0.011642]
[1728466167397,0.03458007,62195.0,62194.0,0.13300284]
[1728466167608,0.19536407,62195.0,62194.0,0.13300284]
[1728466167827,0.18026895,62195.0,62194.0,0.011642]
[1728466168043,0.19536393,62195.0,62194.0,0.011642]
[1728466168750,0.18026895,62195.0,62194.0,0.011642]
[1728466170431,0.19536357,62195.0,62194.0,0.011642]
[1728466174557,0.18026895,62195.0,62194.0,0.011642]
[1728466174803,0.19536348,62195.0,62194.0,0.011642]
[1728466175663,0.18026895,62195.0,62194.0,0.011642]
[1728466198380,0.18026895,62195.0,62194.0,0.00884961]
[1728466199252,0.18026895,62195.0,62194.0,0.13021045]
[1728466200179,0.01948495,62195.0,62194.0,0.13021045]
[1728466200434,0.01948495,62195.0,62194.0,0.47089745]
[1728466200657,0.01948495,62195.0,62194.0,0.62631089]
[1728466200909,0.01948495,62195.0,62194.0,0.67459338]
[1728466201610,0.01948495,62195.0,62194.0,0.62631089]
[1728466202792,0.01948495,62195.0,62194.0,0.01384961]
[1728466203042,0.19829495,62195.0,62194.0,0.01049161]
[1728466204879,0.20203241,62195.0,62194.0,0.01049161]
[1728466205098,0.47600537,62195.0,62194.0,0.01049161]
[1728466205320,0.47226288,62195.0,62194.0,0.01049161]
[1728466205538,0.39985579,62195.0,62194.0,0.01049161]
[1728466206013,0.39985579,62195.0,62194.0,0.00749161]
[1728466206014,0.39885579,62195.0,62194.0,0.00749161]
[1728466206259,0.25846895,62195.0,62194.0,0.003642]
[1728466206495,0.26220641,62195.0,62194.0,0.003642]
[1728466206734,0.26220641,62195.0,62194.0,0.004642]
[1728466206973,0.31046972,62195.0,62194.0,0.001642]
[1728466207201,0.31346972,62195.0,62194.0,0.001642]
[1728466207484,0.31546972,62195.0,62194.0,0.001642]
[1728466208402,0.38395623,62195.0,62194.0,0.001642]
[1728466208632,0.38021877,62195.0,62194.0,0.001642]
[1728466210022,0.33195546,62195.0,62194.0,0.001642]
[1728466210255,0.38020984,62195.0,62194.0,0.001642]
[1728466210935,0.8273657,62195.0,62194.0,0.001642]
[1728466211165,0.70672974,62195.0,62194.0,0.001642]
[1728466211633,0.82737187,62195.0,62194.0,0.001642]
[1728466212101,0.80322264,62195.0,62194.0,0.001642]
[1728466213056,0.6818618,62195.0,62194.0,0.001642]
[1728466213505,0.5853689,62195.0,62194.0,0.001642]
[1728466214159,0.18326895,62195.0,62194.0,0.001642]
[1728466215167,0.18026895,62195.0,62194.0,0.001642]
[1728466215625,0.18326895,62195.0,62194.0,0.001642]
[1728466215854,0.18126895,62195.0,62194.0,0.001642]
[1728466216082,0.17826895,62195.0,62194.0,0.001642]
[1728466216306,0.18026895,62195.0,62194.0,0.001642]
[1728466216552,0.18126895,62195.0,62194.0,0.004642]
[1728466216786,0.17926895,62195.0,62194.0,0.004642]
[1728466217000,0.18026895,62195.0,62194.0,0.010642]
[1728466217482,0.17185017,62195.0,62194.0,0.010642]
[1728466217701,0.17066041,62195.0,62194.0,0.010642]
[1728466219851,0.17066041,62195.0,62194.0,0.015642]
[1728466221711,0.17066041,62195.0,62194.0,0.010642]
[1728466221916,0.17066041,62195.0,62194.0,0.015642]
[1728466224399,0.17066041,62195.0,62194.0,0.13700284]
[1728466232610,0.00987641,62195.0,62194.0,0.13700284]
[1728466232820,0.00987641,62195.0,62194.0,0.53621858]
[1728466233043,0.002821,62195.0,62194.0,0.62720328]
[1728466234058,0.001821,62195.0,62194.0,0.62420328]
[1728466234279,0.002821,62195.0,62194.0,0.62720328]
[1728466234567,0.002821,62195.0,62194.0,0.67539046]
[1728466234802,0.001821,62195.0,62194.0,0.62420328]
[1728466235018,0.007821,62195.0,62194.0,0.70148405]
[1728466235450,0.007821,62195.0,62194.0,0.62320328]
[1728466235451,0.006821,62195.0,62194.0,0.62320328]
[1728466235667,0.006821,62195.0,62194.0,0.62520328]
[1728466235885,0.006821,62195.0,62194.0,0.62920328]
[1728466236107,0.006821,62195.0,62194.0,0.72520328]
[1728466236331,0.006821,62195.0,62194.0,0.79748405]
[1728466236584,0.013821,62195.0,62194.0,0.72420328]
[1728466236808,0.013821,62195.0,62194.0,0.60284244]
[1728466237048,0.013821,62195.0,62194.0,0.72420328]
[1728466237491,0.013821,62195.0,62194.0,0.77233432]
[1728466238430,0.013821,62195.0,62194.0,0.72420328]
[1728466239326,0.013821,62195.0,62194.0,0.79638987]
[1728466239540,0.013821,62195.0,62194.0,0.74720328]
[1728466239993,0.000821,62208.0,62207.0,0.46161384]
[1728466240222,0.000821,62208.0,62207.0,0.61702728]
[1728466241588,0.001821,62208.0,62207.0,0.62402728]
[1728466242321,0.002821,62208.0,62207.0,0.63402728]
[1728466242541,0.002821,62208.0,62207.0,0.69541321]
[1728466243897,0.001821,62208.0,62207.0,0.68841321]
[1728466244125,0.000821,62208.0,62207.0,0.69041321]
[1728466244851,0.000821,62208.0,62207.0,0.79541321]
[1728466245739,0.000821,62208.0,62207.0,0.80741321]
[1728466248869,0.000821,62208.0,62207.0,0.81152272]
[1728466262014,0.000321,62208.0,62207.0,0.81152272]
[1728466262909,0.000321,62208.0,62207.0,0.71512272]
[1728466263127,0.000321,62208.0,62207.0,0.63702272]
[1728466263344,0.000321,62208.0,62207.0,0.53202272]
[1728466264488,0.000321,62208.0,62207.0,0.46853766]
[1728466265424,0.00777502,62208.0,62207.0,0.46853766]
[1728466266577,0.000321,62208.0,62207.0,0.46853766]
[1728466267544,0.00777014,62208.0,62207.0,0.46853766]
[1728466267771,0.000321,62208.0,62207.0,0.46853766]
[1728466268005,0.00776947,62208.0,62207.0,0.46853766]
[1728466268251,0.000321,62208.0,62207.0,0.46853766]
[1728466268474,0.00775946,62208.0,62207.0,0.46853766]
[1728466268711,0.000321,62208.0,62207.0,0.46853766]
[1728466271956,0.000321,62208.0,62207.0,0.47017766]
[1728466285459,0.000321,62208.0,62207.0,0.51827912]
[1728466290269,0.000321,62208.0,62207.0,0.51834265]
[1728466291517,0.000321,62208.0,62207.0,0.39708094]
[1728466291749,0.000321,62208.0,62207.0,0.51834265]
[1728466292943,0.000321,62208.0,62207.0,0.51834417]
[1728466302284,0.000321,62208.0,62207.0,0.47017766]
[1728466305579,0.000321,62208.0,62207.0,0.54247223]
[1728466308457,0.000321,62208.0,62207.0,0.56657042]
[1728466308735,0.000321,62208.0,62207.0,0.74207042]
[1728466309007,0.000321,62208.0,62207.0,0.75067766]
[1728466312223,0.000321,62208.0,62207.0,0.57017766]
[1728466312890,0.000321,62208.0,62207.0,0.34891595]
[1728466313125,0.000321,62208.0,62207.0,0.47017766]
[1728466313340,0.000321,62208.0,62207.0,0.5424192]
[1728466316679,0.000321,62208.0,62207.0,0.5324192]
[1728466317158,0.000321,62208.0,62207.0,0.5444192]
[1728466317401,0.000321,62208.0,62207.0,0.23832731]
[1728466317611,0.000321,62208.0,62207.0,0.19016295]
[1728466317839,0.000321,62208.0,62207.0,0.29942466]
[1728466318090,0.00783803,62208.0,62207.0,0.46017766]
[1728466318289,0.00783803,62208.0,62207.0,0.47417766]
[1728466318712,0.000321,62208.0,62207.0,0.47417766]
[1728466318937,0.0078347,62208.0,62207.0,0.47417766]
[1728466319143,0.000321,62208.0,62207.0,0.47417766]
[1728466322481,0.000321,62208.0,62207.0,0.15801122]
[1728466322698,0.000321,62208.0,62207.0,0.31876422]
[1728466326289,0.161072,62208.0,62207.0,0.03264]
[1728466326719,0.000321,62208.0,62207.0,0.03264]
[1728466326968,0.000321,62208.0,62207.0,0.193393]
[1728466327441,0.000321,62208.0,62207.0,0.34880644]
[1728466328142,0.000321,62208.0,62207.0,0.3969708]
[1728466328821,0.000321,62208.0,62207.0,0.39695778]
[1728466330849,0.000321,62208.0,62207.0,0.34880644]
[1728466333056,0.000321,62208.0,62207.0,0.47006815]
[1728466336099,0.000321,62208.0,62207.0,0.31465471]
[1728466336331,0.092321,62208.0,62207.0,0.15390171]
[1728466337882,0.253072,62208.0,62207.0,0.15390171]
[1728466342112,0.000321,62208.0,62207.0,0.15390171]
[1728466342569,0.161072,62208.0,62207.0,0.03264]
[1728466343438,0.161072,62208.0,62207.0,0.02764]
[1728466343670,0.161072,62208.0,62207.0,0.03264]
[1728466343881,0.341172,62208.0,62207.0,0.03264]
[1728466349995,0.260372,62208.0,62207.0,0.03264]
[1728466350211,0.26410946,62208.0,62207.0,0.03264]
[1728466350439,0.000321,62208.0,62207.0,0.03264]
[1728466351773,0.161072,62208.0,62207.0,0.03264]
[1728466352883,0.000321,62208.0,62207.0,0.03264]
[1728466353647,0.161072,62208.0,62207.0,0.03264]
[1728466359475,0.000321,62208.0,62207.0,0.03264]
[1728466360403,0.161072,62208.0,62207.0,0.03264]
[1728466381950,0.000321,62208.0,62207.0,0.193393]
[1728466382188,0.000321,62208.0,62207.0,0.44532117]
[1728466382438,0.000321,62208.0,62207.0,0.44210644]
[1728466382913,0.000321,62208.0,62207.0,0.44210644]
[1728466384151,0.000321,62208.0,62207.0,0.28135344]
[1728466384382,0.000321,62208.0,62207.0,0.03264]
[1728466384383,0.161072,62208.0,62207.0,0.03264]
[1728466394194,0.000321,62208.0,62207.0,0.03264]
[1728466394445,0.161072,62208.0,62207.0,0.03264]
[1728466398677,0.000321,62208.0,62207.0,0.03264]
[1728466398915,0.161072,62208.0,62207.0,0.03264]
[1728466399155,0.000321,62208.0,62207.0,0.03264]
[1728466399379,0.161072,62208.0,62207.0,0.03264]
[1728466399847,0.000321,62208.0,62207.0,0.03264]
[1728466400081,0.161072,62208.0,62207.0,0.03264]
[1728466400296,0.000321,62208.0,62207.0,0.03264]
[1728466400521,0.161072,62208.0,62207.0,0.03264]
[1728466400749,0.000321,62208.0,62207.0,0.03264]
[1728466401022,0.161072,62208.0,62207.0,0.03264]
[1728466403341,0.2594598,62208.0,62207.0,0.03264]
[1728466405592,0.161072,62208.0,62207.0,0.03264]
[1728466408466,0.14147833,62208.0,62207.0,0.03264]
[1728466411510,0.14229933,62208.0,62207.0,0.03264]
[1728466411934,0.14229933,62208.0,62207.0,0.15390171]
[1728466413713,0.000821,62208.0,62207.0,0.23080171]
[1728466413937,0.000821,62208.0,62207.0,0.64136815]
[1728466419638,0.000821,62208.0,62207.0,0.35935344]
[1728466419858,0.000821,62208.0,62207.0,0.64136815]
[1728466420310,0.000821,62208.0,62207.0,0.48061515]
[1728466420532,0.000821,62208.0,62207.0,0.64136815]
[1728466432742,0.000821,62208.0,62207.0,0.68957152]
[1728466432959,0.000821,62208.0,62207.0,0.64136815]
[1728466434293,0.000821,62208.0,62207.0,0.71358446]
[1728466436357,0.000821,62208.0,62207.0,0.64136815]
[1728466437349,0.000821,62208.0,62207.0,0.71358446]
[1728466437575,0.000821,62208.0,62207.0,0.64136815]
[1728466439011,0.000821,62208.0,62207.0,0.71358446]
[1728466440669,0.000821,62208.0,62207.0,0.74636815]
[1728466440936,0.000821,62208.0,62207.0,0.8427749]
[1728466442103,0.000821,62208.0,62207.0,0.8167749]
[1728466442555,0.000821,62208.0,62207.0,0.72536815]
[1728466442556,0.001821,62208.0,62207.0,0.72536815]
[1728466443012,0.001821,62208.0,62207.0,0.72036815]
[1728466443230,0.001821,62208.0,62207.0,0.74336815]
[1728466444423,0.000821,62212.0,62211.0,0.467143]
[1728466444650,0.000821,62212.0,62211.0,0.74381815]
[1728466445071,0.000821,62212.0,62211.0,0.83996768]
[1728466445324,0.000821,62212.0,62211.0,0.74381815]
[1728466445564,0.000821,62212.0,62211.0,0.83995965]
[1728466445783,0.000821,62212.0,62211.0,0.74581815]
[1728466446005,0.000821,62212.0,62211.0,0.74804702]
[1728466446357,0.000821,62212.0,62211.0,0.82014557]
[1728466448612,0.000821,62212.0,62211.0,0.74804702]
[1728466450635,0.000821,62212.0,62211.0,0.79607438]
[1728466452013,0.000821,62212.0,62211.0,0.67481267]
[1728466452236,0.000821,62212.0,62211.0,0.79607438]
[1728466452984,0.000821,62212.0,62211.0,0.79606903]
[1728466453490,0.000821,62212.0,62211.0,0.74804702]
[1728466453703,0.000821,62212.0,62211.0,0.82008004]
[1728466454785,0.000821,62212.0,62211.0,0.82208004]
[1728466454984,0.000821,62212.0,62211.0,0.82508004]
[1728466455260,0.000821,62212.0,62211.0,0.82308004]
[1728466455719,0.000821,62212.0,62211.0,0.82508004]
[1728466458597,0.000821,62212.0,62211.0,0.82506849]
[1728466459101,0.000821,62212.0,62211.0,0.70380678]
[1728466459338,0.000821,62212.0,62211.0,0.82506849]
[1728466460662,0.000821,62212.0,62211.0,0.82306849]
[1728466460922,0.000821,62212.0,62211.0,0.82606849]
[1728466461583,0.000821,62212.0,62211.0,0.82006849]
[1728466462091,0.000821,62212.0,62211.0,0.82506849]
[1728466462315,0.000821,62212.0,62211.0,0.82106849]
[1728466462538,0.000821,62212.0,62211.0,0.82306849]
[1728466462992,0.000821,62212.0,62211.0,1.06284789]
[1728466463209,0.000821,62228.0,62227.0,0.165701]
[1728466463429,0.000821,62228.0,62227.0,0.32111444]
[1728466464791,0.00793368,62228.0,62227.0,0.32111444]
[1728466465024,0.00793368,62228.0,62227.0,0.32611444]
[1728466465025,0.000821,62228.0,62227.0,0.32611444]
[1728466465476,0.00793368,62228.0,62227.0,0.32511444]
[1728466465695,0.00793368,62228.0,62227.0,0.32911444]
[1728466466594,0.00793368,62228.0,62227.0,0.32511444]
[1728466467026,0.000821,62228.0,62227.0,0.32811444]
[1728466467954,0.00792748,62228.0,62227.0,0.32811444]
[1728466468162,0.000821,62228.0,62227.0,0.32811444]
[1728466468394,0.00792859,62228.0,62227.0,0.33231923]
[1728466468499,0.000821,62228.0,62227.0,0.33231923]
[1728466468733,0.00794578,62228.0,62227.0,0.33231923]
[1728466468969,0.000821,62228.0,62227.0,0.33231923]
[1728466470361,0.007948,62228.0,62227.0,0.32931923]
[1728466470589,0.000821,62228.0,62227.0,0.32931923]
[1728466470824,0.00794134,62228.0,62227.0,0.33131923]
[1728466471059,0.000821,62228.0,62227.0,0.32731923]
[1728466471298,0.0079431,62228.0,62227.0,0.33031923]
[1728466471535,0.00794421,62228.0,62227.0,0.33031923]
[1728466473098,0.000821,62228.0,62227.0,0.33031923]
[1728466473550,0.000821,62228.0,62227.0,0.32831923]
[1728466474000,0.000821,62228.0,62227.0,0.43931923]
[1728466474679,0.000821,62228.0,62227.0,0.43031923]
[1728466474887,0.000821,62228.0,62227.0,0.43731923]
[1728466475325,0.000821,62228.0,62227.0,0.43031923]
[1728466480455,0.000821,62228.0,62227.0,0.32531923]
[1728466481353,0.00800191,62228.0,62227.0,0.32531923]
[1728466481591,0.000821,62228.0,62227.0,0.32531923]
[1728466481814,0.00800302,62228.0,62227.0,0.32531923]
[1728466482038,0.000821,62228.0,62227.0,0.32531923]
[1728466482282,0.00799061,62228.0,62227.0,0.32531923]
[1728466482503,0.000821,62228.0,62227.0,0.32531923]
[1728466482946,0.00798396,62228.0,62227.0,0.32531923]
[1728466483165,0.000821,62228.0,62227.0,0.32531923]
[1728466483386,0.00798507,62228.0,62227.0,0.32531923]
[1728466483607,0.000821,62228.0,62227.0,0.32531923]
[1728466483821,0.00797828,62228.0,62227.0,0.32531923]
[1728466484044,0.000821,62228.0,62227.0,0.32531923]
[1728466484266,0.26137728,62228.0,62227.0,0.005]
[1728466484488,0.34137728,62228.0,62227.0,0.005]
[1728466486342,0.18067828,62228.0,62227.0,0.005]
[1728466487616,0.18067828,62228.0,62227.0,0.01]
[1728466488045,0.18067828,62228.0,62227.0,0.005]
[1728466488253,0.18067828,62228.0,62227.0,0.012]
[1728466488941,0.18067828,62228.0,62227.0,0.018]
[1728466490070,0.34511474,62228.0,62227.0,0.018]
[1728466490279,0.34137728,62228.0,62227.0,0.018]
[1728466492935,0.34137728,62228.0,62227.0,0.012]
[1728466493379,0.34137728,62228.0,62227.0,0.016]
[1728466493613,0.34137728,62228.0,62227.0,0.009]
[1728466494047,0.34137728,62228.0,62227.0,0.015]
[1728466494234,0.34137728,62228.0,62227.0,0.009]
[1728466494654,0.34137728,62228.0,62227.0,0.015]
[1728466494864,0.34137728,62228.0,62227.0,0.005]
[1728466495091,0.34137728,62228.0,62227.0,0.016]
[1728466495511,0.34137728,62228.0,62227.0,0.005]
[1728466495943,0.34137728,62228.0,62227.0,0.01]
[1728466496363,0.34137728,62228.0,62227.0,0.005]
[1728466496788,0.34137728,62228.0,62227.0,0.01]
[1728466497026,0.34137728,62228.0,62227.0,0.016]
[1728466497237,0.34137728,62228.0,62227.0,0.01]
[1728466497447,0.34137728,62228.0,62227.0,0.016]
[1728466498753,0.18067828,62228.0,62227.0,0.016]
[1728466501911,0.18441574,62228.0,62227.0,0.016]
[1728466502143,0.18067828,62228.0,62227.0,0.016]
[1728466502385,0.34511474,62228.0,62227.0,0.011]
[1728466502649,0.34137728,62228.0,62227.0,0.016]
[1728466502872,0.18067828,62228.0,62227.0,0.016]
[1728466503329,0.18441574,62228.0,62227.0,0.016]
[1728466503557,0.34511474,62228.0,62227.0,0.016]
[1728466503777,0.34137728,62228.0,62227.0,0.016]
[1728466510253,0.18067828,62228.0,62227.0,0.016]
[1728466510462,0.34137728,62228.0,62227.0,0.016]
[1728466514236,0.00797828,62228.0,62227.0,0.176701]
[1728466515080,0.000821,62228.0,62227.0,0.176701]
[1728466516133,0.00792276,62228.0,62227.0,0.176701]
[1728466516843,0.00792276,62228.0,62227.0,0.016]
[1728466517058,0.26602176,62228.0,62227.0,0.016]
[1728466517277,0.35145922,62228.0,62227.0,0.016]
[1728466517502,0.34772176,62228.0,62227.0,0.016]
[1728466518473,0.44685224,62228.0,62227.0,0.016]
[1728466518937,0.321408,62227.0,62222.0,0.005]
[1728466519155,0.321408,62227.0,62221.0,0.005]
[1728466519156,0.160714,62222.0,62221.0,0.005]
[1728466519365,0.16782505,62222.0,62221.0,0.005]
[1728466519579,0.17156251,62222.0,62221.0,0.005]
[1728466520610,0.16782505,62222.0,62221.0,0.005]
[1728466521087,0.00711105,62222.0,62221.0,0.012]
[1728466521322,0.16782505,62222.0,62221.0,0.012]
[1728466521537,0.160714,62222.0,62221.0,0.13326171]
[1728466521753,0.16783059,62222.0,62221.0,0.13926171]
[1728466522193,0.00711659,62222.0,62221.0,0.13926171]
[1728466522402,0.16783059,62222.0,62221.0,0.13926171]
[1728466522618,0.160714,62222.0,62221.0,0.13926171]
[1728466522826,0.16782394,62222.0,62221.0,0.13926171]
[1728466524960,0.16782394,62222.0,62221.0,0.018]
[1728466525193,0.1715614,62222.0,62221.0,0.018]
[1728466531731,0.16782394,62222.0,62221.0,0.018]
[1728466534431,0.1715614,62222.0,62221.0,0.018]
[1728466535576,0.16782394,62222.0,62221.0,0.018]
[1728466537485,0.1715614,62222.0,62221.0,0.018]
[1728466537704,0.35769719,62222.0,62221.0,0.018]
[1728466537924,0.36902393,62222.0,62221.0,0.018]
[1728466540397,0.27838814,62222.0,62221.0,0.018]
[1728466540614,0.2821256,62222.0,62221.0,0.018]
[1728466541296,0.1866256,62222.0,62221.0,0.018]
[1728466541520,0.18288814,62222.0,62221.0,0.018]
[1728466541725,0.1866256,62222.0,62221.0,0.018]
[1728466541965,0.1874466,62222.0,62221.0,0.018]
[1728466544622,0.18370914,62222.0,62221.0,0.018]
[1728466546848,0.18370914,62222.0,62221.0,0.013]
[1728466547087,0.16864494,62222.0,62221.0,0.018]
[1728466551601,0.00793094,62222.0,62221.0,0.018]
[1728466552057,0.16864494,62222.0,62221.0,0.018]
[1728466553929,0.1723824,62222.0,62221.0,0.018]
[1728466555644,0.1723824,62222.0,62221.0,0.013]
[1728466555860,0.1723824,62222.0,62221.0,0.018]
[1728466557430,0.16864494,62222.0,62221.0,0.018]